bitfinex/quotes_BTCUSD_20251224
["timestamp","ask_amount","ask_price","bid_price","bid_amount"]
[1766537930498,0.12703,87661.0,87653.0,0.01140862]
[1766537930719,0.12703,87661.0,87652.0,0.01140875]
[1766537931183,0.13843758,87661.0,87652.0,0.01140875]
[1766537931382,0.13843758,87661.0,87653.0,0.01140862]
[1766537931591,0.13843758,87661.0,87648.0,0.05704596]
[1766537931592,0.000549,87653.0,87649.0,0.01140914]
[1766537931808,0.011989,87653.0,87648.0,0.01140927]
[1766537932086,0.01144,87653.0,87647.0,0.0114094]
[1766537932533,0.01144,87653.0,87646.0,0.01140953]
[1766537932737,0.01140823,87656.0,87647.0,0.0114094]
[1766537932949,0.01144,87655.0,87644.0,0.17569837]
[1766537933249,0.01140849,87654.0,87644.0,0.11865]
[1766537933387,0.01140849,87654.0,87645.0,0.01140966]
[1766537933593,0.01144,87655.0,87648.0,0.01140927]
[1766537933810,0.01144,87655.0,87649.0,0.01140914]
[1766537934231,0.01144,87655.0,87648.0,0.01140927]
[1766537934455,0.01144,87655.0,87642.0,0.01141005]
[1766537934456,0.01140849,87654.0,87642.0,0.01141005]
[1766537934681,0.03335017,87664.0,87661.0,0.11865]
[1766537934912,0.00010703,87671.0,87660.0,0.11865]
[1766537935147,0.02284641,87670.0,87660.0,0.11865]
[1766537935346,0.11559,87664.0,87656.0,0.01140823]
[1766537935560,0.01140732,87663.0,87653.0,0.13005862]
[1766537935787,0.12699719,87664.0,87654.0,0.01140849]
[1766537936007,0.01140745,87662.0,87653.0,0.13005862]
[1766537936508,0.01140732,87663.0,87654.0,0.01140849]
[1766537936925,0.12699719,87664.0,87655.0,0.01140836]
[1766537937998,0.11559,87664.0,87656.0,0.01140823]
[1766537938432,0.12699719,87664.0,87654.0,0.01140849]
[1766537938628,0.01140745,87662.0,87654.0,0.01140849]
[1766537939034,0.01140732,87663.0,87654.0,0.01140849]
[1766537939179,0.11559,87664.0,87656.0,0.01140823]
[1766537939790,0.12699719,87664.0,87655.0,0.01140836]
[1766537940067,0.12567732,87663.0,87654.0,0.01140849]
[1766537940268,0.11427,87663.0,87654.0,0.01140849]
[1766537940489,0.11427,87663.0,87655.0,0.01140836]
[1766537940918,0.11427,87663.0,87654.0,0.01140849]
[1766537941921,0.11427,87663.0,87655.0,0.01140836]
[1766537942122,0.11427,87663.0,87656.0,0.01140823]
[1766537942302,0.11427,87663.0,87655.0,0.01140836]
[1766537943546,0.01140758,87661.0,87652.0,0.01140875]
[1766537943757,0.01140745,87662.0,87653.0,0.01140862]
[1766537943980,0.12567732,87663.0,87653.0,0.01140862]
[1766537944183,0.11427,87663.0,87655.0,0.01140836]
[1766537944329,0.11427,87663.0,87656.0,0.01140823]
[1766537944734,0.11427,87663.0,87652.0,0.01140875]
[1766537944735,0.01140745,87662.0,87652.0,0.01140875]
[1766537944940,0.12567745,87662.0,87652.0,0.01140875]
[1766537945176,0.01140797,87658.0,87647.0,0.06845599]
[1766537945333,0.11427,87657.0,87647.0,0.06845599]
[1766537945541,0.12567849,87654.0,87644.0,0.01140979]
[1766537946091,0.11427,87652.0,87642.0,0.01144]
[1766537946296,0.11427,87648.0,87641.0,0.0001]
[1766537946463,0.11427,87648.0,87642.0,0.01141005]
[1766537947063,0.11427,87648.0,87642.0,0.05705027]
[1766537947267,0.01144,87652.0,87648.0,0.01195927]
[1766537947467,0.01144,87652.0,87648.0,0.01140927]
[1766537947668,0.01144,87652.0,87647.0,0.0114094]
[1766537947887,0.01144,87652.0,87649.0,0.01140914]
[1766537948089,0.01144,87652.0,87648.0,0.01140927]
[1766537948283,0.01144,87652.0,87649.0,0.01140914]
[1766537948622,0.01144,87652.0,87648.0,0.01140927]
[1766537949928,0.01144,87652.0,87649.0,0.01140914]
[1766537950261,0.01144,87652.0,87647.0,0.0114094]
[1766537950498,0.01144,87652.0,87643.0,0.01140992]
[1766537950670,0.01144,87652.0,87646.0,0.01140953]
[1766537951034,0.01144,87652.0,87645.0,0.01140966]
[1766537951346,0.01144,87652.0,87646.0,0.01140953]
[1766537952370,0.01144,87652.0,87645.0,0.01140966]
[1766537952570,0.01144,87652.0,87646.0,0.01140953]
[1766537953031,0.01144,87656.0,87652.0,0.00055]
[1766537953237,0.12567875,87652.0,87641.0,0.07085958]
[1766537954120,0.12567875,87652.0,87641.0,0.05715054]
[1766537954332,0.11427,87652.0,87644.0,0.01140979]
[1766537955358,0.0001,87661.0,87653.0,0.01140862]
[1766537955567,0.1450668,87674.0,87661.0,0.13266758]
[1766537955568,0.08164552,87673.0,87661.0,0.13266758]
[1766537955771,0.11427,87673.0,87665.0,0.01140706]
[1766537955944,0.11427,87673.0,87664.0,0.01140719]
[1766537956129,0.000549,87664.0,87661.0,0.13266758]
[1766537956329,0.11427,87673.0,87662.0,0.06844408]
[1766537956533,0.11427,87673.0,87665.0,0.01140706]
[1766537956942,0.11427,87673.0,87664.0,0.01140719]
[1766537957198,0.11437703,87671.0,87664.0,0.01140719]
[1766537957533,0.11437703,87671.0,87665.0,0.01140706]
[1766537957734,0.11437703,87671.0,87664.0,0.01140719]
[1766537957935,0.11437703,87671.0,87665.0,0.01140706]
[1766537959620,0.000549,87665.0,87662.0,0.01140745]
[1766537959828,0.11437703,87671.0,87662.0,0.01140745]
[1766537960562,0.11437703,87671.0,87663.0,0.01140732]
[1766537960984,0.000549,87663.0,87660.0,0.02284771]
[1766537961229,0.000549,87663.0,87660.0,0.01144]
[1766537961402,0.01140667,87668.0,87660.0,0.01144]
[1766537961601,0.12567667,87668.0,87660.0,0.01144]
[1766537961840,0.18271059,87668.0,87660.0,0.01144]
[1766537962002,0.0114068,87667.0,87660.0,0.01144]
[1766537962388,0.0114068,87667.0,87660.0,0.010341]
[1766537962587,0.1256768,87667.0,87660.0,0.010341]
[1766537962816,0.01140693,87666.0,87660.0,0.010341]
[1766537963350,0.12567706,87665.0,87660.0,0.010341]
[1766537963557,0.12567706,87665.0,87655.0,0.02284836]
[1766537963953,0.01140719,87664.0,87655.0,0.02284836]
[1766537964254,0.11427,87664.0,87656.0,0.01140823]
[1766537964641,0.11427,87664.0,87658.0,0.01140797]
[1766537965096,0.11427,87664.0,87659.0,0.01140784]
[1766537965477,0.11427,87664.0,87658.0,0.01140797]
[1766537965693,0.11427,87664.0,87659.0,0.01140784]
[1766537966063,0.11427,87664.0,87658.0,0.01140797]
[1766537966376,0.11427,87664.0,87657.0,0.0114081]
[1766537967710,0.11427,87664.0,87658.0,0.01140797]
[1766537967906,0.01140758,87661.0,87655.0,0.01144]
[1766537968110,0.12567719,87664.0,87655.0,0.01144]
[1766537968308,0.12567719,87664.0,87655.0,0.02284836]
[1766537968510,0.11427,87664.0,87656.0,0.01140823]
[1766537968830,0.11427,87664.0,87657.0,0.0114081]
[1766537969245,0.11427,87664.0,87655.0,0.01144]
[1766537969246,0.01154703,87671.0,87663.0,0.11417]
[1766537969400,0.01154703,87671.0,87668.0,0.01140667]
[1766537969750,0.01144,87675.0,87671.0,0.05651247]
[1766537969883,0.01144,87675.0,87670.0,0.01140641]
[1766537970091,0.01144,87675.0,87671.0,0.01140628]
[1766537970739,0.01144,87676.0,87672.0,0.01140615]
[1766537970942,0.01144,87679.0,87676.0,0.01195462]
[1766537971141,0.01144,87679.0,87676.0,0.000549]
[1766537971341,0.01144,87679.0,87673.0,0.01140602]
[1766537971342,0.01144,87679.0,87674.0,0.01140589]
[1766537971536,0.01144,87679.0,87673.0,0.01140602]
[1766537971956,0.01144,87679.0,87675.0,0.01140575]
[1766537972154,0.01144,87679.0,87676.0,0.01140562]
[1766537972355,0.01144,87679.0,87674.0,0.01140589]
[1766537972555,0.01144,87679.0,87670.0,0.1826081]
[1766537972780,0.11335,87681.0,87673.0,0.01140602]
[1766537975077,0.00055,87673.0,87671.0,0.01144]
[1766537975505,0.01140549,87677.0,87671.0,0.01144]
[1766537975506,0.01140562,87676.0,87671.0,0.01144]
[1766537975861,0.13104549,87677.0,87671.0,0.01144]
[1766537976655,0.06843397,87676.0,87664.0,0.01140719]
[1766537976827,0.01140536,87678.0,87668.0,0.02284667]
[1766537976828,0.00055,87671.0,87668.0,0.02284667]
[1766537977003,0.11964,87675.0,87668.0,0.01144]
[1766537977684,0.11964,87675.0,87668.0,0.02284667]
[1766537977897,0.11964,87681.0,87670.0,0.0684383]
[1766537978110,0.13104497,87681.0,87671.0,0.01140628]
[1766537979392,0.0114051,87680.0,87670.0,0.01140641]
[1766537979604,0.11964,87679.0,87672.0,0.01140615]
[1766537979776,0.11964,87679.0,87671.0,0.01140628]
[1766537980159,0.11964,87679.0,87670.0,0.01140641]
[1766537980367,0.13104523,87679.0,87671.0,0.01140628]
[1766537980757,0.18807173,87679.0,87668.0,0.01144]
[1766537980958,0.13104536,87678.0,87669.0,0.01140654]
[1766537981255,0.01140549,87677.0,87668.0,0.01144]
[1766537981515,0.01140575,87675.0,87668.0,0.01144]
[1766537981819,0.01140562,87676.0,87668.0,0.01144]
[1766537982154,0.13104549,87677.0,87668.0,0.01144]
[1766537982382,0.13104549,87677.0,87668.0,0.02284667]
[1766537982749,0.13104549,87677.0,87668.0,0.01144]
[1766537982940,0.01140562,87676.0,87668.0,0.01144]
[1766537983155,0.01140575,87675.0,87668.0,0.01144]
[1766537983586,0.01140602,87673.0,87668.0,0.01144]
[1766537983803,0.05702879,87675.0,87668.0,0.01144]
[1766537984399,0.01140589,87674.0,87668.0,0.01144]
[1766537985173,0.01140602,87673.0,87668.0,0.01144]
[1766537985668,0.06843454,87675.0,87668.0,0.01144]
[1766537985894,0.01140589,87674.0,87668.0,0.01144]
[1766537986403,0.01140602,87673.0,87668.0,0.01144]
[1766537986958,0.01140589,87674.0,87668.0,0.01144]
[1766537987164,0.01140602,87673.0,87668.0,0.01144]
[1766537987364,0.01140615,87672.0,87668.0,0.01144]
[1766537988156,0.01140602,87673.0,87668.0,0.01144]
[1766537988585,0.01140615,87672.0,87668.0,0.01144]
[1766537988789,0.01140628,87671.0,87668.0,0.01144]
[1766537990273,0.01140589,87674.0,87668.0,0.01144]
[1766537991242,0.01140615,87672.0,87668.0,0.01144]
[1766537991448,0.01140628,87671.0,87668.0,0.01144]
[1766537991888,0.06843564,87674.0,87668.0,0.01144]
[1766537992092,0.01140589,87674.0,87668.0,0.01144]
[1766537992348,0.01140615,87672.0,87668.0,0.01144]
[1766537992651,0.01140589,87674.0,87668.0,0.01144]
[1766537993460,0.01140615,87672.0,87668.0,0.01144]
[1766537993859,0.01140602,87673.0,87668.0,0.01144]
[1766537994493,0.01140602,87673.0,87668.0,0.01114329]
[1766537995105,0.01140615,87672.0,87662.0,0.11605]
[1766537995315,0.01140602,87673.0,87664.0,0.13889719]
[1766537995524,0.01140575,87675.0,87666.0,0.01140693]
[1766537995733,0.01140575,87675.0,87667.0,0.0114068]
[1766537995876,0.01140575,87675.0,87666.0,0.01140693]
[1766537996078,0.01140562,87676.0,87667.0,0.0114068]
[1766537996553,0.01140615,87672.0,87665.0,0.11605]
[1766537996769,0.01140628,87671.0,87665.0,0.11605]
[1766537997063,0.01140641,87670.0,87665.0,0.11605]
[1766537997201,0.01140628,87671.0,87665.0,0.11605]
[1766537997889,0.01140589,87674.0,87671.0,0.000549]
[1766537998338,0.01140628,87671.0,87665.0,0.11605]
[1766537998569,0.01140628,87671.0,87663.0,0.01144]
[1766537998570,0.12584654,87669.0,87663.0,0.01144]
[1766537999215,0.01140628,87671.0,87663.0,0.01144]
[1766537999654,0.01140615,87672.0,87663.0,0.13715732]
[1766537999867,0.12588,87675.0,87667.0,0.0114068]
[1766538000186,0.12588,87675.0,87669.0,0.01140654]
[1766538000390,0.01144,87675.0,87670.0,0.01140641]
[1766538000852,0.01144,87675.0,87672.0,0.01140615]
[1766538001061,0.0228451,87680.0,87671.0,0.11431]
[1766538001287,0.01144,87680.0,87671.0,0.11431]
[1766538001648,0.01144,87680.0,87673.0,0.01140602]
[1766538001848,0.12588,87680.0,87673.0,0.01140602]
[1766538002018,0.12588,87680.0,87672.0,0.01140615]
[1766538002199,0.12588,87680.0,87673.0,0.01140602]
[1766538002601,0.11444,87686.0,87678.0,0.01140536]
[1766538002815,0.0546478,87697.0,87660.0,0.43311836]
[1766538002816,0.01140211,87703.0,87692.0,0.01140354]
[1766538003179,0.01140211,87703.0,87693.0,0.12571341]
[1766538003409,0.01144,87707.0,87696.0,0.22806057]
[1766538003627,0.01144,87707.0,87698.0,0.05701384]
[1766538003832,0.01144,87707.0,87689.0,0.22807823]
[1766538003833,0.12588,87707.0,87702.0,0.01140224]
[1766538004012,0.12597366,87707.0,87702.0,0.01140224]
[1766538004223,0.12597366,87707.0,87699.0,0.01140263]
[1766538004446,0.12597366,87707.0,87698.0,0.01140276]
[1766538004622,0.12597366,87707.0,87699.0,0.01140263]
[1766538004826,0.06896588,87699.0,87692.0,0.11431]
[1766538005025,0.11444,87696.0,87687.0,0.01144]
[1766538005228,0.11444,87692.0,87683.0,0.01140471]
[1766538005430,0.11444,87692.0,87683.0,0.02284471]
[1766538005627,0.11444,87692.0,87684.0,2.94e-06]
[1766538006266,0.11444,87690.0,87684.0,2.94e-06]
[1766538006466,0.01140406,87688.0,87684.0,2.94e-06]
[1766538006657,0.11444,87687.0,87684.0,2.94e-06]
[1766538008386,0.01140341,87693.0,87687.0,0.000549]
[1766538008972,0.01140341,87693.0,87684.0,0.01140752]
[1766538009196,0.01144,87694.0,87686.0,0.01140432]
[1766538009402,0.01144,87694.0,87685.0,0.01140445]
[1766538009606,0.01144,87694.0,87686.0,0.01140432]
[1766538009986,0.01165268,87695.0,87694.0,0.000549]
[1766538009987,0.00024953,87695.0,87694.0,0.000549]
[1766538010178,0.00024953,87695.0,87690.0,0.0114038]
[1766538010383,0.00024953,87695.0,87689.0,0.01140393]
[1766538010904,0.00024953,87695.0,87688.0,0.01140406]
[1766538011103,0.00024953,87695.0,87687.0,0.12571419]
[1766538011326,0.00024953,87695.0,87687.0,0.11431]
[1766538011527,0.06866875,87695.0,87687.0,0.11431]
[1766538012057,0.01165268,87695.0,87687.0,0.11431]
[1766538012600,0.01140328,87694.0,87687.0,0.11431]
[1766538012804,0.00024953,87695.0,87687.0,0.11431]
[1766538013029,0.01165268,87695.0,87687.0,0.11431]
[1766538015289,0.00024953,87695.0,87687.0,0.12571419]
[1766538015490,0.01165268,87695.0,87687.0,0.11431]
[1766538015833,0.00024953,87695.0,87687.0,0.12571419]
[1766538016022,0.00024953,87695.0,87688.0,0.01140406]
[1766538016239,0.00024953,87695.0,87689.0,0.01140393]
[1766538016447,0.01140276,87698.0,87688.0,0.11431]
[1766538017044,0.01140302,87696.0,87686.0,0.01140432]
[1766538017305,0.01140315,87695.0,87686.0,0.01140432]
[1766538017508,0.01140328,87694.0,87685.0,0.01140445]
[1766538018352,0.01140328,87694.0,87685.0,0.12571445]
[1766538018624,0.01140328,87694.0,87685.0,0.11431]
[1766538018826,0.01140328,87694.0,87685.0,0.12571445]
[1766538019105,0.01140328,87694.0,87685.0,0.11431]
[1766538019261,0.01140328,87694.0,87685.0,0.12571445]
[1766538019657,0.01140341,87693.0,87685.0,0.11431]
[1766538019870,0.06842067,87693.0,87685.0,0.11431]
[1766538020078,0.01140354,87692.0,87685.0,0.11431]
[1766538020276,0.01140341,87693.0,87685.0,0.11431]
[1766538020690,0.01140328,87694.0,87685.0,0.11431]
[1766538021102,0.01140315,87695.0,87685.0,0.12571445]
[1766538021513,0.01140302,87696.0,87687.0,0.11431]
[1766538021707,0.12584289,87697.0,87687.0,0.12571419]
[1766538021914,0.11444,87697.0,87688.0,0.01140406]
[1766538022132,0.11444,87697.0,87689.0,0.05701929]
[1766538022312,0.11444,87697.0,87690.0,0.0114038]
[1766538022530,0.01144,87701.0,87691.0,0.01140367]
[1766538022909,0.01144,87701.0,87692.0,0.01140354]
[1766538023105,0.01144,87701.0,87693.0,0.01140341]
[1766538023377,0.01144,87701.0,87694.0,0.01048652]
[1766538023581,0.01144,87701.0,87695.0,0.01140315]
[1766538023884,0.01144,87701.0,87694.0,0.01048652]
[1766538024116,0.06850385,87707.0,87696.0,0.01140302]
[1766538024320,9.366e-05,87707.0,87699.0,0.06841569]
[1766538024945,9.366e-05,87707.0,87700.0,0.11431]
[1766538025149,9.366e-05,87707.0,87700.0,0.1257125]
[1766538025351,9.366e-05,87707.0,87702.0,0.05701124]
[1766538025548,9.366e-05,87707.0,87702.0,0.01140224]
[1766538025730,9.366e-05,87707.0,87704.0,0.01140198]
[1766538026215,0.01140016,87718.0,87704.0,0.06780036]
[1766538026404,0.01144,87715.0,87708.0,0.11400438]
[1766538027254,0.01140029,87717.0,87708.0,0.11400438]
[1766538027498,0.02284042,87716.0,87708.0,0.11400438]
[1766538027922,0.07984296,87716.0,87708.0,0.11400438]
[1766538028119,0.01140068,87714.0,87708.0,0.11400438]
[1766538028322,0.01140055,87715.0,87708.0,0.11400438]
[1766538028456,0.01140055,87715.0,87706.0,0.01144]
[1766538028457,0.01140094,87712.0,87706.0,0.01144]
[1766538028673,0.01140081,87713.0,87706.0,0.01144]
[1766538029428,0.06840427,87714.0,87706.0,0.01144]
[1766538029429,0.01140068,87714.0,87706.0,0.01144]
[1766538029812,0.00037425,87707.0,87706.0,0.01144]
[1766538030236,2.5e-07,87707.0,87706.0,0.01144]
[1766538031001,2.5e-07,87707.0,87706.0,0.12517]
[1766538032625,0.01144,87716.0,87713.0,0.01140081]
[1766538032853,0.01144,87716.0,87711.0,0.11373]
[1766538033063,0.02284042,87716.0,87711.0,0.11373]
[1766538033267,0.01164997,87715.0,87711.0,0.11373]
[1766538033475,0.000467,87711.0,87706.0,0.01144]
[1766538033686,0.01186807,87711.0,87706.0,0.01144]
[1766538034083,0.01140107,87711.0,87706.0,0.01144]
[1766538034494,0.05700739,87708.0,87706.0,0.01089]
[1766538034766,0.05700739,87708.0,87706.0,1e-08]
[1766538035574,0.05700739,87708.0,87704.0,0.01144]
[1766538035575,0.01140172,87706.0,87704.0,0.01144]
[1766538037001,0.06840822,87709.0,87704.0,0.01144]
[1766538037203,0.01140094,87712.0,87709.0,0.000549]
[1766538037643,0.0114012,87710.0,87704.0,0.12379532]
[1766538037819,0.01140107,87711.0,87704.0,0.12379532]
[1766538038176,0.0114012,87710.0,87704.0,0.12379532]
[1766538038518,0.01140133,87709.0,87704.0,0.12379532]
[1766538038932,0.0114012,87710.0,87704.0,0.12379532]
[1766538039280,0.01140146,87708.0,87704.0,0.12379532]
[1766538039486,0.01140133,87709.0,87704.0,0.12379532]
[1766538040126,0.0572525,87715.0,87704.0,0.1351973]
[1766538040353,0.0572525,87715.0,87704.0,0.12379532]
[1766538040507,0.01140107,87711.0,87704.0,0.12379532]
[1766538040912,0.01140133,87709.0,87704.0,0.12379532]
[1766538041119,0.0114012,87710.0,87704.0,0.12379532]
[1766538041314,0.01140094,87712.0,87704.0,0.12379532]
[1766538041514,3.11e-06,87715.0,87705.0,0.11604]
[1766538041739,0.01144,87720.0,87707.0,0.09383]
[1766538041939,0.01140042,87716.0,87707.0,0.09383]
[1766538042300,0.01139951,87723.0,87711.0,0.10523107]
[1766538042515,0.01139925,87725.0,87711.0,0.10523107]
[1766538042516,0.01139925,87725.0,87715.0,0.09346]
[1766538043004,0.00024941,87723.0,87715.0,0.09346]
[1766538043159,0.0684011,87718.0,87715.0,0.09346]
[1766538043358,0.0684011,87718.0,87715.0,0.092911]
[1766538043562,0.05700195,87717.0,87715.0,0.092911]
[1766538044129,0.05700195,87717.0,87711.0,0.01144]
[1766538044341,0.05700195,87717.0,87699.0,0.11401517]
[1766538044342,0.01140172,87706.0,87700.0,0.43311836]
[1766538044543,0.01140211,87703.0,87701.0,0.01144]
[1766538044785,0.06841334,87703.0,87701.0,0.01153366]
[1766538044992,3.34e-06,87703.0,87701.0,0.01153366]
[1766538045229,0.0114025,87700.0,87694.0,0.0456]
[1766538045429,0.01140289,87697.0,87695.0,0.01144]
[1766538045563,0.06841801,87697.0,87695.0,0.01144]
[1766538045761,0.01140276,87698.0,87695.0,0.01144]
[1766538046184,0.01140276,87698.0,87697.0,0.01370904]
[1766538046404,0.01140263,87699.0,87697.0,0.01370904]
[1766538047986,0.00055,87697.0,87695.0,0.07514904]
[1766538048179,0.01140276,87698.0,87695.0,0.07514904]
[1766538048300,0.01140276,87698.0,87691.0,0.0001]
[1766538048301,0.01140328,87694.0,87691.0,0.0001]
[1766538048526,0.01140393,87689.0,87684.0,2.94e-06]
[1766538048725,0.01370904,87717.0,87684.0,2.94e-06]
[1766538048977,0.04113876,87734.0,87684.0,2.94e-06]
[1766538048978,0.0019,87770.0,87761.0,0.05697249]
[1766538049181,0.0456,87791.0,87782.0,0.09754429]
[1766538049403,0.01148,87790.0,87786.0,0.0364847]
[1766538049606,0.0456,87799.0,87787.0,0.04562221]
[1766538049607,0.01148,87789.0,87787.0,0.04562221]
[1766538049809,0.00795341,87803.0,87787.0,0.04562221]
[1766538049810,0.01148,87790.0,87788.0,0.00913751]
[1766538050012,0.01148,87790.0,87787.0,0.0364847]
[1766538050013,0.0456,87819.0,87801.0,0.05694695]
[1766538050237,0.11318,87818.0,87791.0,0.00910959]
[1766538050448,0.05691386,87853.0,87817.0,0.01138731]
[1766538050656,0.11318,87837.0,87810.0,0.01148]
[1766538050867,0.001099,87810.0,87808.0,0.0001]
[1766538051080,0.001099,87810.0,87796.0,0.01139004]
[1766538051081,0.11318,87809.0,87796.0,0.01139004]
[1766538051310,0.12466,87809.0,87799.0,0.01138965]
[1766538051513,0.12466,87809.0,87795.0,0.01139017]
[1766538051716,0.12466,87809.0,87787.0,0.01098792]
[1766538051911,0.0001,87799.0,87797.0,0.01138991]
[1766538052123,0.001099,87797.0,87787.0,0.00010717]
[1766538052329,0.11318,87796.0,87784.0,0.01139159]
[1766538052565,0.11328689,87796.0,87790.0,0.01139081]
[1766538052774,0.11328689,87796.0,87786.0,0.01139133]
[1766538052775,0.11318,87795.0,87786.0,0.01139133]
[1766538053006,0.11318,87795.0,87790.0,0.01084181]
[1766538053226,0.0001,87799.0,87794.0,0.06834172]
[1766538053227,0.0456,87797.0,87794.0,0.06834172]
[1766538053458,0.01148,87796.0,87794.0,0.06779172]
[1766538053661,0.01148,87796.0,87784.0,0.01139159]
[1766538053662,0.11318,87795.0,87784.0,0.01139159]
[1766538053887,0.01138783,87813.0,87798.0,0.01138978]
[1766538054091,0.03645041,87830.0,87809.0,0.05694175]
[1766538054092,0.11318,87811.0,87809.0,0.05694175]
[1766538054291,0.11318,87826.0,87813.0,0.01138783]
[1766538054497,0.11318,87824.0,87814.0,0.0113877]
[1766538054723,0.11318,87819.0,87813.0,0.05693856]
[1766538054928,0.02287411,87828.0,87823.0,0.05693206]
[1766538055147,0.05708,87827.0,87822.0,0.01138666]
[1766538055358,0.05708,87827.0,87797.0,0.11604]
[1766538055359,0.01138653,87823.0,87797.0,0.11604]
[1766538055578,0.05583731,87817.0,87799.0,0.22779171]
[1766538055776,0.01158,87816.0,87806.0,0.01138874]
[1766538055995,0.01158,87816.0,87808.0,0.01138848]
[1766538056397,0.01158,87816.0,87810.0,0.01138822]
[1766538056608,0.01158,87816.0,87806.0,0.01138874]
[1766538056935,0.01158,87816.0,87804.0,0.0683337]
[1766538057138,0.0001,87816.0,87809.0,0.01138835]
[1766538057349,0.05708,87815.0,87803.0,0.0683345]
[1766538057592,0.05708,87815.0,87807.0,0.01138861]
[1766538057808,0.05708,87815.0,87809.0,0.01138835]
[1766538057977,0.05708,87815.0,87803.0,0.01138913]
[1766538058199,0.05708,87815.0,87805.0,0.01138887]
[1766538058526,0.01138796,87812.0,87800.0,0.01138952]
[1766538058676,0.01138783,87813.0,87798.0,0.01138978]
[1766538058880,0.05708,87815.0,87801.0,0.01138939]
[1766538059304,0.05708,87815.0,87800.0,0.01138952]
[1766538059305,0.01138796,87812.0,87800.0,0.01138952]
[1766538059481,0.01138835,87809.0,87797.0,0.00035749]
[1766538059682,0.01148,87808.0,87797.0,0.00035749]
[1766538059921,0.01138861,87807.0,87797.0,0.00035749]
[1766538060350,0.011389,87804.0,87793.0,0.01139042]
[1766538060556,0.01138965,87799.0,87778.0,0.22784657]
[1766538060793,0.01138965,87799.0,87740.0,0.2]
[1766538060794,0.02733112,87780.0,87768.0,0.01139017]
[1766538060990,0.02733112,87780.0,87750.0,0.22791899]
[1766538060991,0.05704,87779.0,87750.0,0.05697979]
[1766538061182,0.01139419,87764.0,87758.0,0.0001]
[1766538061386,0.22786638,87771.0,87746.0,0.01139653]
[1766538061387,0.01139497,87758.0,87746.0,0.01139653]
[1766538061805,0.01139497,87758.0,87748.0,0.02733112]
[1766538062013,0.01139419,87764.0,87748.0,0.02733112]
[1766538062226,0.01139315,87772.0,87758.0,0.01139497]
[1766538062442,0.01139341,87770.0,87764.0,0.000549]
[1766538062663,0.01139367,87768.0,87764.0,0.000549]
[1766538062866,0.0113938,87767.0,87758.0,0.11858]
[1766538063076,0.01139393,87766.0,87758.0,0.11858]
[1766538063489,0.01139393,87766.0,87750.0,0.05697997]
[1766538063490,0.01139484,87759.0,87749.0,0.12997614]
[1766538063695,0.01148,87758.0,87749.0,0.12997614]
[1766538063921,0.01148,87758.0,87749.0,0.11858]
[1766538064135,0.05697251,87762.0,87758.0,0.000549]
[1766538064136,0.01139445,87762.0,87758.0,0.000549]
[1766538064336,0.06843458,87761.0,87758.0,0.000549]
[1766538064546,0.06843458,87761.0,87749.0,0.11858]
[1766538064547,0.0113951,87757.0,87749.0,0.11858]
[1766538065400,0.01139471,87760.0,87749.0,0.11858]
[1766538065629,0.12540791,87761.0,87728.0,0.11858]
[1766538065630,0.05704,87761.0,87728.0,0.11858]
[1766538065833,0.01139744,87739.0,87727.0,0.01139899]
[1766538066075,0.01139744,87739.0,87718.0,0.11858]
[1766538066076,0.05704,87738.0,87701.0,0.01148]
[1766538066288,0.01139899,87727.0,87713.0,0.01140081]
[1766538066509,0.06839562,87725.0,87710.0,0.1299812]
[1766538066719,0.05700019,87719.0,87710.0,0.11858]
[1766538066921,0.01140042,87716.0,87704.0,0.01140198]
[1766538067145,0.01140055,87715.0,87704.0,0.01140198]
[1766538067375,0.06844016,87718.0,87705.0,0.06841114]
[1766538067576,0.05704,87718.0,87701.0,0.12998237]
[1766538067782,0.01140042,87716.0,87705.0,0.01140185]
[1766538067988,0.01140029,87717.0,87705.0,0.01140185]
[1766538068205,0.06844016,87718.0,87707.0,0.01140159]
[1766538068793,0.05704,87718.0,87708.0,0.01140146]
[1766538069227,0.01148,87717.0,87705.0,0.01140185]
[1766538069434,0.01140094,87712.0,87708.0,0.0001]
[1766538069612,0.01148,87711.0,87708.0,0.0001]
[1766538069815,0.01148,87711.0,87704.0,0.1066009]
[1766538070023,0.0001,87708.0,87704.0,0.1066009]
[1766538070389,0.01148,87711.0,87704.0,0.1066009]
[1766538070770,0.01148,87711.0,87705.0,0.01140185]
[1766538070996,0.01148,87711.0,87703.0,0.01140211]
[1766538072004,0.01148,87711.0,87704.0,0.01140198]
[1766538072447,0.01148,87711.0,87706.0,0.01140172]
[1766538072865,0.01148,87711.0,87705.0,0.12998185]
[1766538073098,0.01148,87711.0,87706.0,0.01140172]
[1766538073731,0.01148,87711.0,87708.0,0.01140146]
[1766538074291,0.01148,87711.0,87707.0,0.01140159]
[1766538075453,0.05708,87710.0,87709.0,0.11858]
[1766538075658,0.000549,87709.0,87704.0,0.01140198]
[1766538075850,0.05708,87710.0,87702.0,0.01140224]
[1766538076054,0.05708,87710.0,87702.0,0.12998224]
[1766538076327,0.05708,87710.0,87705.0,0.01140185]
[1766538076738,0.01140029,87717.0,87706.0,0.01140172]
[1766538076916,0.0456,87709.0,87706.0,0.01140172]
[1766538077115,0.05708,87708.0,87706.0,0.01140172]
[1766538077320,0.05433402,87708.0,87706.0,0.01140172]
[1766538077526,0.05235721,87708.0,87705.0,0.01140185]
[1766538078111,0.05077936,87708.0,87705.0,0.01140185]
[1766538078319,0.05077936,87708.0,87703.0,0.11858]
[1766538078320,0.000549,87705.0,87703.0,0.11858]
[1766538078476,0.05077936,87708.0,87703.0,0.12998211]
[1766538078678,0.01140068,87714.0,87703.0,0.12998211]
[1766538078875,0.05708,87713.0,87709.0,0.01140133]
[1766538079264,0.01148,87712.0,87706.0,0.11858]
[1766538079472,0.01148,87712.0,87706.0,0.12998172]
[1766538079700,0.01148,87712.0,87706.0,0.11858]
[1766538080063,0.01140042,87716.0,87706.0,0.12998172]
[1766538080312,0.05708,87715.0,87706.0,0.12998172]
[1766538080542,0.05708,87715.0,87706.0,0.11858]
[1766538080902,0.05708,87715.0,87707.0,0.01140159]
[1766538081813,0.00035699,87719.0,87714.0,0.01140068]
[1766538082010,0.05708,87718.0,87714.0,0.01140068]
[1766538082615,0.05708,87718.0,87713.0,0.06840468]
[1766538082836,0.05708,87718.0,87713.0,0.01140081]
[1766538083040,0.05708,87718.0,87714.0,0.01140068]
[1766538084901,0.05708,87718.0,87710.0,0.05700587]
[1766538084902,0.00035699,87719.0,87706.0,0.17558829]
[1766538085130,0.01140081,87713.0,87706.0,0.11858]
[1766538085308,0.01148,87712.0,87706.0,0.11858]